bitfinex/quotes_BTCUSD_20220218
["timestamp","ask_amount","ask_price","bid_price","bid_amount"]
[1645206543916,0.10940249,40066.0,40058.0,0.12470366]
[1645206544315,0.20940249,40066.0,40058.0,0.12470366]
[1645206544518,0.062437,40065.0,40058.0,0.12470366]
[1645206545619,0.062437,40065.0,40059.0,0.2603973]
[1645206546017,0.062437,40065.0,40058.0,0.12470366]
[1645206546623,6.409e-05,40064.0,40058.0,0.12470366]
[1645206547263,6.409e-05,40064.0,40059.0,0.27445971]
[1645206548064,0.18967214,40062.0,40058.0,0.12470366]
[1645206548265,6.409e-05,40064.0,40058.0,0.12470366]
[1645206549067,6.409e-05,40064.0,40054.0,0.30013339]
[1645206549068,0.32887245,40060.0,40054.0,0.30013339]
[1645206549275,0.37887245,40060.0,40054.0,0.00013339]
[1645206549466,0.05,40060.0,40054.0,0.00013339]
[1645206549970,0.25906612,40059.0,40054.0,0.00013339]
[1645206550268,0.30309567,40055.0,40054.0,0.00013339]
[1645206550466,0.35309567,40055.0,40054.0,0.00013339]
[1645206550667,0.05,40055.0,40054.0,0.00013339]
[1645206556264,0.05,40055.0,40053.0,0.27454574]
[1645206556664,0.05006319,40055.0,40049.0,0.12091757]
[1645206556865,0.05006319,40055.0,40040.0,0.3]
[1645206557265,6.319e-05,40055.0,40040.0,0.3]
[1645206557665,0.29338217,40051.0,40045.0,0.31352822]
[1645206558065,0.12375111,40049.0,40045.0,0.31352822]
[1645206558423,0.29338217,40051.0,40045.0,0.31352822]
[1645206558618,0.29338217,40051.0,40042.0,0.13261356]
[1645206558919,0.29338217,40051.0,40038.0,0.00022794]
[1645206558920,0.26152644,40050.0,40038.0,0.00022794]
[1645206559118,0.332983,40049.0,40038.0,0.00022794]
[1645206559318,0.15,40049.0,40038.0,0.00022794]
[1645206559519,0.332983,40047.0,40038.0,0.00022794]
[1645206559723,0.35058652,40043.0,40038.0,0.30862826]
[1645206559920,0.10092022,40045.0,40038.0,0.42783187]
[1645206560322,0.15092022,40045.0,40038.0,0.42783187]
[1645206560523,0.15092022,40045.0,40038.0,0.30862826]
[1645206560723,0.0624729,40043.0,40038.0,0.30862826]
[1645206560924,0.0624729,40043.0,40038.0,0.00022794]
[1645206560925,0.66255318,40043.0,40038.0,0.00022794]
[1645206561124,0.71255318,40043.0,40037.0,0.49434981]
[1645206562021,0.71255318,40043.0,40037.0,0.80375643]
[1645206562022,0.11628506,40038.0,40037.0,0.80375643]
[1645206562270,0.11628506,40038.0,40037.0,0.49434981]
[1645206563770,0.06247699,40040.0,40037.0,0.49434981]
[1645206564571,0.0095,40042.0,40037.0,0.49434981]
[1645206564874,0.11385558,40042.0,40037.0,0.49434981]
[1645206565674,0.36222437,40043.0,40037.0,0.49434981]
[1645206565675,0.05,40043.0,40038.0,0.3]
[1645206565928,0.05,40043.0,40037.0,0.49434981]
[1645206566123,6.21e-05,40044.0,40037.0,0.49434981]
[1645206566422,6.21e-05,40044.0,40037.0,0.59434981]
[1645206566623,6.21e-05,40044.0,40042.0,0.11393746]
[1645206566823,0.11001496,40049.0,40042.0,0.11393746]
[1645206567428,0.11001496,40049.0,40047.0,0.0026]
[1645206569324,0.0091618,40050.0,40047.0,0.0026]
[1645206570369,0.332983,40049.0,40047.0,0.0026]
[1645206570568,0.05,40049.0,40047.0,0.0026]
[1645206570766,0.382983,40048.0,40047.0,0.0026]
[1645206570966,0.05,40048.0,40047.0,0.0026]
[1645206571167,0.50265979,40048.0,40047.0,0.0026]
[1645206571367,0.45265979,40048.0,40047.0,0.0026]
[1645206571569,0.16967679,40048.0,40047.0,0.0026]
[1645206572368,0.05,40048.0,40047.0,0.0026]
[1645206572768,6.259e-05,40049.0,40047.0,0.0026]
[1645206573430,0.45747622,40048.0,40047.0,0.0026]
[1645206573719,0.12449322,40048.0,40047.0,0.0026]
[1645206573918,0.45747622,40048.0,40047.0,0.0026]
[1645206574118,0.50747622,40048.0,40047.0,0.0026]
[1645206574719,0.17449322,40048.0,40047.0,0.0026]
[1645206574921,0.17691184,40048.0,40047.0,0.0026]
[1645206576521,0.05248111,40048.0,40047.0,0.0026]
[1645206576722,0.00248111,40048.0,40047.0,0.0026]
[1645206577579,0.00248111,40048.0,40047.0,0.11155171]
[1645206577985,0.00248111,40048.0,40047.0,0.47399671]
[1645206578183,0.009,40065.0,40050.0,0.00496221]
[1645206578783,0.009,40065.0,40063.0,0.10284729]
[1645206578985,0.11924351,40069.0,40063.0,0.10284729]
[1645206579182,0.31793793,40070.0,40063.0,0.10284729]
[1645206579383,0.09927955,40070.0,40063.0,0.10284729]
[1645206579982,0.34952404,40068.0,40063.0,0.10284729]
[1645206580582,0.39952404,40068.0,40063.0,0.10284729]
[1645206580783,0.44952404,40068.0,40063.0,0.10284729]
[1645206581022,0.44952404,40068.0,40055.0,0.124853]
[1645206581424,0.44952404,40068.0,40053.0,0.124856]
[1645206581622,0.3,40067.0,40058.0,0.29890265]
[1645206581823,0.11465975,40059.0,40053.0,0.05]
[1645206582026,0.632983,40058.0,40053.0,0.05]
[1645206582226,0.632983,40058.0,40050.0,0.01426221]
[1645206582227,0.35,40058.0,40050.0,0.01426221]
[1645206582424,0.0093,40057.0,40050.0,0.00496221]
[1645206582823,0.29633636,40052.0,40050.0,0.00496221]
[1645206583129,0.10317302,40052.0,40050.0,0.00496221]
[1645206584425,0.09987302,40052.0,40050.0,0.00496221]
[1645206585672,0.25321163,40053.0,40050.0,0.00496221]
[1645206585867,0.30321163,40053.0,40050.0,0.00496221]
[1645206587671,0.0093,40057.0,40050.0,0.00496221]
[1645206587871,0.06244655,40059.0,40050.0,0.00496221]
[1645206587872,0.05,40055.0,40050.0,0.00496221]
[1645206588180,0.4944,40065.0,40050.0,0.10494629]
[1645206588181,0.3045,40065.0,40050.0,0.10494629]
[1645206588430,0.27805195,40063.0,40058.0,0.33007893]
[1645206588624,0.27805195,40063.0,40058.0,0.4364715]
[1645206588822,0.01,40064.0,40058.0,0.4364715]
[1645206589222,0.01,40064.0,40051.0,0.3]
[1645206589422,0.01,40064.0,40051.0,0.10447337]
[1645206590223,0.30168731,40063.0,40058.0,0.26112073]
[1645206590423,0.36413031,40063.0,40058.0,0.26112073]
[1645206590625,0.36413031,40063.0,40057.0,0.10691473]
[1645206590626,0.53902294,40063.0,40057.0,0.10691473]
[1645206590827,0.58902294,40063.0,40057.0,0.10691473]
[1645206591025,0.46413031,40063.0,40057.0,0.10691473]
[1645206591624,0.16250351,40063.0,40059.0,0.26469247]
[1645206592023,0.16185215,40063.0,40059.0,0.26469247]
[1645206592475,0.11185215,40063.0,40059.0,0.26469247]
[1645206592676,0.05006051,40063.0,40059.0,0.26469247]
[1645206593175,6.051e-05,40063.0,40059.0,0.26469247]
[1645206593381,6.051e-05,40063.0,40057.0,0.10691473]
[1645206593577,6.051e-05,40063.0,40051.0,0.00447337]
[1645206593578,0.332983,40062.0,40051.0,0.00447337]
[1645206593779,0.06244755,40060.0,40051.0,0.00447337]
[1645206593976,0.0097,40059.0,40051.0,0.00447337]
[1645206594377,0.30099171,40058.0,40053.0,0.31044616]
[1645206594576,0.11119366,40057.0,40051.0,0.00447337]
[1645206594777,0.11119366,40057.0,40053.0,0.00226459]
[1645206594978,0.17364866,40057.0,40053.0,0.00226459]
[1645206597923,0.17364866,40057.0,40053.0,0.12260657]
[1645206598323,0.062455,40057.0,40053.0,0.12260657]
[1645206599771,0.00133331,40056.0,40053.0,0.12034198]
[1645206601871,0.06245305,40055.0,40050.0,0.00496221]
[1645206602072,0.12490605,40055.0,40050.0,0.00496221]
[1645206603419,0.10851343,40053.0,40050.0,0.00496221]
[1645206603821,0.062459,40052.0,40050.0,0.00496221]
[1645206604417,0.26483751,40051.0,40050.0,0.00496221]
[1645206604617,0.48988223,40051.0,40050.0,0.00496221]
[1645206604816,0.53988223,40051.0,40050.0,0.00496221]
[1645206605417,0.58988223,40051.0,40050.0,0.00496221]
[1645206606426,0.68988223,40051.0,40050.0,0.00496221]
[1645206606617,0.68988223,40051.0,40047.0,0.0026]
[1645206606618,1.45,40050.0,40047.0,0.0026]
[1645206606817,0.1,40050.0,40047.0,0.0026]
[1645206607018,0.695462,40049.0,40047.0,0.0026]
[1645206607271,0.35,40048.0,40047.0,0.0026]
[1645206607770,0.45,40048.0,40047.0,0.0026]
[1645206608170,0.35,40048.0,40047.0,0.0026]
[1645206608369,0.45,40048.0,40047.0,0.0026]
[1645206609569,0.15,40048.0,40047.0,0.0026]
[1645206609770,0.05,40048.0,40047.0,0.0026]
[1645206609970,0.35,40048.0,40047.0,0.0026]
[1645206610371,0.15,40048.0,40047.0,0.0026]
[1645206611318,0.05,40048.0,40047.0,0.0026]
[1645206611525,0.17495633,40049.0,40047.0,0.0026]
[1645206611526,0.062479,40049.0,40047.0,0.0026]
[1645206611921,0.01,40052.0,40047.0,0.0026]
[1645206612122,0.1223,40059.0,40047.0,0.0026]
[1645206612320,0.1223,40059.0,40049.0,0.31124962]
[1645206612321,0.28627159,40055.0,40049.0,0.31124962]
[1645206612520,0.0099,40057.0,40051.0,0.09463756]
[1645206613525,0.1234,40062.0,40051.0,0.09463756]
[1645206613721,0.1994,40068.0,40058.0,0.32749392]
[1645206613722,0.0094,40067.0,40058.0,0.32749392]
[1645206614124,0.0094,40067.0,40063.0,0.10834102]
[1645206614780,0.35336537,40071.0,40063.0,0.10834102]
[1645206614781,0.12486,40071.0,40063.0,0.10834102]
[1645206614976,0.11748645,40076.0,40064.0,0.05]
[1645206615178,0.0095,40076.0,40065.0,0.3]
[1645206615378,0.0095,40076.0,40065.0,0.35]
[1645206615577,0.0095,40076.0,40071.0,0.13196552]
[1645206615578,0.062414,40074.0,40071.0,0.13196552]
[1645206617982,0.21817022,40073.0,40064.0,0.0099]
[1645206618182,0.31817022,40073.0,40064.0,0.0099]
[1645206618428,0.062423,40069.0,40064.0,0.0099]
[1645206618626,0.332983,40068.0,40056.0,0.05]
[1645206618823,0.2124353,40068.0,40056.0,0.05]
[1645206619024,0.32110608,40068.0,40065.0,0.00232288]
[1645206619328,0.37110608,40068.0,40065.0,0.00232288]
[1645206619523,0.12488,40066.0,40065.0,0.00232288]
[1645206619724,1.61988,40066.0,40055.0,0.0091]
[1645206619924,0.22590839,40060.0,40055.0,0.0091]
[1645206620123,0.33835839,40060.0,40047.0,0.0026]
[1645206620324,0.38835839,40060.0,40047.0,0.0026]
[1645206620526,0.38835839,40060.0,40055.0,0.35314226]
[1645206620726,0.2138503,40072.0,40056.0,0.3]
[1645206620928,0.2138503,40072.0,40057.0,0.05]
[1645206620929,0.0098,40072.0,40057.0,0.05]
[1645206621127,0.0098,40072.0,40058.0,0.0095]
[1645206621424,0.0098,40072.0,40059.0,0.05]
[1645206621625,6.071e-05,40065.0,40062.0,0.062415]
[1645206621829,6.071e-05,40065.0,40063.0,0.05]
[1645206622272,6.071e-05,40065.0,40063.0,0.14998408]
[1645206623071,0.25501736,40077.0,40063.0,0.14998408]
[1645206623072,0.25501736,40077.0,40065.0,1.45012141]
[1645206623274,0.25501736,40077.0,40073.0,0.32659857]
[1645206623472,0.062415,40074.0,40073.0,0.32659857]
[1645206623771,0.062415,40074.0,40071.0,0.10854031]
[1645206624972,0.31502901,40073.0,40066.0,0.0091]
[1645206625275,0.06242968,40071.0,40066.0,0.0091]
[1645206625472,0.11242968,40071.0,40066.0,0.0091]
[1645206625934,0.0099,40070.0,40065.0,0.00470762]
[1645206626528,0.332983,40069.0,40065.0,0.00470762]
[1645206626725,0.05,40069.0,40065.0,0.00470762]
[1645206626926,0.12488769,40068.0,40065.0,0.00470762]
[1645206627329,0.34267343,40067.0,40065.0,0.00470762]
[1645206627727,0.44267343,40067.0,40065.0,0.00470762]
[1645206629330,0.05,40066.0,40065.0,0.00012141]
[1645206629777,0.0099,40070.0,40065.0,0.00012141]
[1645206630375,0.0099,40070.0,40066.0,0.33861508]
[1645206630572,0.0099,40070.0,40066.0,0.45791946]
[1645206631177,0.184755,40070.0,40065.0,0.00012141]
[1645206631679,0.05,40069.0,40065.0,0.00012141]
[1645206632777,0.174858,40069.0,40065.0,0.00012141]
[1645206634021,0.112427,40069.0,40065.0,0.00012141]
[1645206634824,0.00230107,40066.0,40065.0,0.00012141]
[1645206638370,0.00230107,40066.0,40065.0,0.33879675]
[1645206639572,0.062421,40074.0,40065.0,0.34150405]
[1645206639771,0.112421,40074.0,40071.0,0.12779046]
[1645206639980,0.05,40074.0,40073.0,0.33564877]
[1645206640176,0.05,40074.0,40071.0,0.12779046]
[1645206640774,0.33958655,40078.0,40071.0,0.12779046]
[1645206641220,0.33958655,40078.0,40073.0,0.28085023]
[1645206641619,0.33958655,40078.0,40067.0,0.062413]
[1645206641820,0.33958655,40078.0,40065.0,0.00282871]
[1645206641821,0.40200265,40078.0,40065.0,0.00282871]
[1645206642021,0.062419,40075.0,40065.0,0.00282871]
[1645206642221,0.18998189,40075.0,40065.0,0.11974984]
[1645206642423,0.062419,40075.0,40065.0,0.11974984]
[1645206642625,0.062419,40075.0,40071.0,0.27525151]
[1645206642626,0.162419,40075.0,40071.0,0.27525151]
[1645206642822,0.05,40078.0,40071.0,0.27525151]
[1645206643222,0.0093,40080.0,40071.0,0.27525151]
[1645206643421,0.0093,40080.0,40072.0,0.059]
[1645206643823,0.51274702,40080.0,40072.0,0.059]
[1645206644224,0.67515928,40080.0,40072.0,0.059]
[1645206644669,0.37982195,40080.0,40072.0,0.059]
[1645206644869,0.062415,40079.0,40072.0,0.059]
[1645206645770,0.30810969,40080.0,40072.0,0.059]
[1645206645973,0.05945643,40084.0,40072.0,0.059]
[1645206646172,0.0591,40084.0,40072.0,0.059]
[1645206646371,0.05945643,40084.0,40072.0,0.059]
[1645206646572,0.00945643,40084.0,40072.0,0.059]
[1645206646775,0.32152655,40076.0,40072.0,0.059]
[1645206646975,0.00945643,40084.0,40072.0,0.059]
[1645206646976,0.22204472,40081.0,40072.0,0.059]
[1645206647174,0.22204472,40081.0,40072.0,0.00892973]
[1645206647374,0.3,40080.0,40068.0,0.00209558]
[1645206647573,0.32204472,40081.0,40068.0,0.00209558]
[1645206647776,0.42204472,40081.0,40068.0,0.00209558]
[1645206647974,0.062425,40073.0,40069.0,0.27419376]
[1645206648274,0.12484918,40073.0,40068.0,0.00209558]
[1645206648524,0.13414918,40073.0,40068.0,0.00209558]
[1645206648923,0.13414918,40073.0,40065.0,0.00213456]
[1645206649123,0.13414918,40073.0,40066.0,0.28136651]
[1645206649724,0.13414918,40073.0,40065.0,0.00213456]
[1645206650727,0.13414918,40073.0,40065.0,0.29184384]
[1645206651527,0.13414918,40073.0,40066.0,0.12147347]
[1645206652673,0.0093,40073.0,40066.0,0.07308381]
[1645206654074,0.0093,40073.0,40068.0,0.0040943]
[1645206655076,0.1,40074.0,40068.0,0.0040943]
[1645206655276,0.05,40075.0,40068.0,0.0040943]
[1645206655481,0.05,40074.0,40068.0,0.0040943]
[1645206656323,0.0498,40074.0,40068.0,0.0040943]
[1645206657823,0.32530977,40075.0,40068.0,0.0040943]
[1645206658224,0.1,40075.0,40068.0,0.0040943]
[1645206658423,0.1,40075.0,40068.0,0.0665073]
[1645206658823,0.05,40075.0,40068.0,0.0665073]
[1645206659022,0.0593,40077.0,40068.0,0.0665073]
[1645206659223,0.1093,40077.0,40068.0,0.0665073]
[1645206659423,0.1093,40077.0,40068.0,0.124822]
[1645206659668,0.00142658,40072.0,40068.0,0.062413]
[1645206660674,0.00142658,40072.0,40069.0,0.0093]
[1645206662374,0.00142658,40072.0,40065.0,0.00012141]
[1645206662576,0.332983,40071.0,40065.0,0.00012141]
[1645206662774,0.00142658,40072.0,40065.0,0.00012141]
[1645206662775,0.0097,40070.0,40065.0,0.00012141]
[1645206663179,0.10235082,40066.0,40065.0,0.00012141]
[1645206663428,0.34356899,40066.0,40065.0,0.00012141]
[1645206663723,0.39356899,40066.0,40065.0,0.00012141]
[1645206664121,0.49356899,40066.0,40065.0,0.00012141]
[1645206664524,0.39356899,40066.0,40065.0,0.00012141]
[1645206664722,0.79356899,40066.0,40065.0,0.00012141]
[1645206666430,1.993383,40066.0,40065.0,1.41e-06]
[1645206666634,0.06245818,40060.0,40047.0,0.0026]
[1645206666827,0.332983,40054.0,40049.0,0.35006974]
[1645206667036,0.332983,40053.0,40047.0,0.0026]
[1645206667275,0.0093,40052.0,40047.0,0.0026]
[1645206667474,0.13291019,40048.0,40047.0,0.0026]
[1645206667675,0.11066945,40051.0,40049.0,0.26582038]
[1645206667878,0.23559945,40051.0,40049.0,0.26582038]
[1645206668076,0.28559945,40051.0,40049.0,0.26582038]
[1645206668280,0.17493,40051.0,40049.0,0.26582038]
[1645206669079,0.0093,40052.0,40049.0,0.26582038]
[1645206669277,0.05,40055.0,40049.0,0.26582038]
[1645206669677,0.05,40055.0,40051.0,0.09592201]
[1645206670477,0.1,40055.0,40051.0,0.09592201]
[1645206670676,0.1,40055.0,40049.0,0.26582038]
[1645206670927,0.1,40055.0,40052.0,0.34537516]
[1645206671518,0.1,40055.0,40049.0,0.26582038]
[1645206672118,0.12081447,40053.0,40049.0,0.26582038]
[1645206672319,0.17081447,40053.0,40049.0,0.26582038]
[1645206672520,0.33557171,40050.0,40049.0,0.26582038]
[1645206673121,0.23326647,40053.0,40049.0,0.26582038]
[1645206673724,0.06245882,40051.0,40049.0,0.26582038]
[1645206674022,0.29505162,40050.0,40049.0,0.26582038]
[1645206674674,0.11245882,40051.0,40049.0,0.26582038]
[1645206674972,0.06245882,40051.0,40049.0,0.26582038]
[1645206676472,0.31578516,40050.0,40049.0,0.26582038]
[1645206676872,0.41578516,40050.0,40049.0,0.26582038]
[1645206677173,0.74876816,40050.0,40049.0,0.26582038]
[1645206677372,0.41578516,40050.0,40049.0,0.26582038]
[1645206677771,0.74876816,40050.0,40049.0,0.26582038]
[1645206677973,0.41578516,40050.0,40049.0,0.26582038]
[1645206678726,0.74876816,40050.0,40049.0,0.26582038]
[1645206679319,1.50916816,40050.0,40049.0,0.26582038]
[1645206679821,0.41578516,40050.0,40049.0,0.26582038]
[1645206680021,0.41578516,40050.0,40049.0,0.22757917]
[1645206680621,0.74876816,40050.0,40049.0,0.22757917]
[1645206680821,0.41578516,40050.0,40049.0,0.22757917]
[1645206682473,0.74876816,40050.0,40049.0,0.22757917]
[1645206683974,0.74876816,40050.0,40049.0,0.22984635]
[1645206684373,1.50916816,40050.0,40049.0,0.22984635]
[1645206684673,1.17618516,40050.0,40049.0,0.22984635]
[1645206684873,0.1,40050.0,40049.0,0.22984635]
[1645206685076,0.05,40051.0,40049.0,0.22984635]
[1645206685276,0.18326647,40053.0,40049.0,0.22984635]
[1645206685277,0.112452,40053.0,40049.0,0.22984635]
[1645206685479,0.062452,40053.0,40049.0,0.22984635]
[1645206685931,0.06245359,40054.0,40050.0,0.25706285]
[1645206686126,0.0098,40058.0,40050.0,0.25706285]
[1645206686329,0.12236195,40053.0,40050.0,0.25706285]
[1645206687227,0.18481795,40053.0,40050.0,0.25706285]
[1645206687425,0.24727296,40053.0,40050.0,0.25706285]
[1645206688026,0.17491101,40053.0,40050.0,0.25706285]
[1645206688226,0.17491101,40053.0,40049.0,0.22984635]
[1645206688428,0.11245501,40053.0,40049.0,0.22984635]
[1645206689030,0.12259536,40052.0,40049.0,0.22984635]
[1645206689877,0.00143486,40050.0,40049.0,0.22757917]
[1645206692580,0.33441786,40050.0,40049.0,0.22757917]
[1645206692779,0.43441786,40050.0,40049.0,0.22757917]
[1645206695429,0.43518311,40050.0,40049.0,0.22757917]
[1645206695630,1.362475,40049.0,40047.0,0.0026]
[1645206695832,0.432983,40048.0,40047.0,0.0026]
[1645206696030,0.432983,40048.0,40032.0,0.00023356]
[1645206696031,0.06247926,40040.0,40032.0,0.00023356]
[1645206696232,0.06247926,40040.0,40033.0,0.00023356]
[1645206696233,0.530355,40039.0,40033.0,0.00023356]
[1645206696430,0.630355,40039.0,40031.0,0.25830012]
[1645206696636,0.24298294,40037.0,40031.0,0.25853368]
[1645206696831,0.395476,40036.0,40031.0,0.25853368]
[1645206697031,0.445476,40036.0,40031.0,0.25853368]
[1645206697283,0.06249145,40035.0,40031.0,0.25853368]
[1645206697482,0.332983,40034.0,40031.0,0.25830012]
[1645206697981,0.112488,40034.0,40030.0,0.00433356]
[1645206698184,0.11854842,40031.0,40030.0,0.0041]
[1645206698382,0.11391078,40033.0,40031.0,0.23709684]
[1645206699684,0.332983,40032.0,40031.0,0.23709684]
[1645206700185,0.11391078,40033.0,40031.0,0.23709684]
[1645206700786,0.29995542,40034.0,40031.0,0.23709684]
[1645206701029,0.05,40034.0,40031.0,0.23709684]
[1645206701230,0.05,40034.0,40032.0,0.3]
[1645206701430,0.0099,40039.0,40031.0,0.23709684]
[1645206701627,0.0099,40039.0,40031.0,0.2373304]
[1645206701832,0.0099,40039.0,40032.0,0.72165117]
[1645206702033,0.1999,40045.0,40040.0,0.1263181]
[1645206702227,0.13044305,40047.0,40040.0,0.1263181]
[1645206702430,0.13044305,40047.0,40034.0,0.00023356]
[1645206702927,0.06247052,40043.0,40041.0,0.32343533]
[1645206703527,0.06247052,40043.0,40041.0,0.42598028]
[1645206703731,0.01,40050.0,40041.0,0.42598028]
[1645206703934,0.01,40050.0,40042.0,0.3091]
[1645206704132,0.01,40050.0,40042.0,0.48423556]
[1645206704336,0.3749,40057.0,40049.0,0.34177426]
[1645206704676,0.0094,40057.0,40052.0,0.11898067]
[1645206705278,0.06244175,40061.0,40053.0,0.0094]
[1645206706077,0.10511614,40060.0,40053.0,0.0094]
[1645206706278,0.23001418,40060.0,40053.0,0.0094]
[1645206706479,0.23001418,40060.0,40049.0,0.34177426]
[1645206706480,0.34873008,40060.0,40049.0,0.34177426]
[1645206706884,0.411179,40060.0,40049.0,0.34177426]
[1645206707081,0.30237321,40059.0,40049.0,0.34177426]
[1645206707380,0.30237321,40059.0,40051.0,0.12463279]
[1645206707582,0.062453,40057.0,40051.0,0.12463279]
[1645206708080,0.12490441,40057.0,40051.0,0.12463279]
[1645206709728,0.1,40061.0,40052.0,0.3]
[1645206710030,0.06243991,40062.0,40055.0,0.00228711]
[1645206710230,0.0093,40063.0,40055.0,0.00228711]
[1645206710630,0.0093,40063.0,40062.0,0.12425523]
[1645206710829,0.062436,40066.0,40062.0,0.12425523]
[1645206711028,0.062436,40066.0,40055.0,0.00228711]
[1645206711228,0.0091,40065.0,40055.0,0.00228711]
[1645206711829,0.0091,40065.0,40058.0,0.29892343]
[1645206712278,0.0091,40065.0,40061.0,0.09727773]
[1645206712478,0.06243749,40064.0,40061.0,0.09727773]
[1645206712880,0.062434,40066.0,40061.0,0.09727773]
[1645206713182,0.1911,40076.0,40061.0,0.09727773]
[1645206713380,0.17012278,40076.0,40069.0,0.28861359]
[1645206713580,0.06241703,40076.0,40069.0,0.28861359]
[1645206713980,0.06241703,40076.0,40075.0,0.09931199]
[1645206714180,0.0094,40078.0,40075.0,0.09931199]
[1645206714381,0.27102613,40077.0,40069.0,0.28861359]
[1645206714584,0.27102613,40077.0,40067.0,0.05]
[1645206714585,0.06241634,40077.0,40067.0,0.05]
[1645206715382,0.06241634,40077.0,40070.0,0.10399782]
[1645206715581,0.06241634,40077.0,40071.0,0.32841073]
[1645206716047,0.00035643,40080.0,40072.0,0.05]
[1645206716237,0.00975643,40081.0,40072.0,0.0596]
[1645206716433,0.00035643,40080.0,40072.0,0.0596]
[1645206716833,0.0094,40081.0,40072.0,0.0596]
[1645206717034,0.0094,40081.0,40080.0,0.10650863]
[1645206717339,0.27315484,40084.0,40080.0,0.10650863]
[1645206717534,0.27315484,40084.0,40075.0,0.062402]
[1645206717535,0.27351127,40084.0,40075.0,0.062402]
[1645206717737,0.33555902,40084.0,40075.0,0.062402]
[1645206718234,0.06240418,40084.0,40072.0,0.0596]
[1645206718437,0.10591745,40074.0,40072.0,0.0596]
[1645206718638,0.10591745,40074.0,40072.0,0.05]
[1645206718639,0.16834154,40074.0,40072.0,0.05]
[1645206719035,0.15591745,40074.0,40072.0,0.05]
[1645206719234,0.05,40074.0,40072.0,0.33234704]
[1645206719435,0.00035643,40081.0,40072.0,0.33234704]
[1645206719687,0.00035643,40084.0,40072.0,0.05]
[1645206719888,0.00172409,40076.0,40072.0,0.05]
[1645206720284,0.13369588,40075.0,40072.0,0.05]
[1645206720488,0.05,40075.0,40067.0,0.1205754]
[1645206720887,0.00172409,40076.0,40067.0,0.1205754]
[1645206721487,0.2397448,40074.0,40067.0,0.1205754]
[1645206721686,0.2897448,40074.0,40068.0,0.26957206]
[1645206721887,0.2897448,40074.0,40067.0,0.1205754]
[1645206722288,0.05,40074.0,40067.0,0.1205754]
[1645206722491,0.00172409,40076.0,40067.0,0.1205754]
[1645206722987,0.06414024,40076.0,40067.0,0.1205754]
[1645206723189,0.12680299,40074.0,40067.0,0.1205754]
[1645206723450,0.31280846,40074.0,40067.0,0.1205754]
[1645206723642,0.36280846,40074.0,40067.0,0.1205754]
[1645206723842,0.36280846,40074.0,40069.0,0.3003527]
[1645206723843,0.06242552,40073.0,40069.0,0.3003527]
[1645206725344,0.06242552,40073.0,40067.0,0.1205754]
[1645206725543,0.06242552,40073.0,40065.0,0.05]
[1645206725746,0.332983,40071.0,40057.0,0.1954]
[1645206725945,1.122826,40072.0,40050.0,0.1821]
[1645206725946,0.06242853,40070.0,40050.0,0.1821]
[1645206726144,1.0604,40072.0,40049.0,0.1248]
[1645206726145,0.3,40069.0,40049.0,0.1248]
[1645206726445,0.30751442,40065.0,40057.0,0.30426345]
[1645206726644,0.25846107,40061.0,40057.0,0.13001558]
[1645206726843,0.32090307,40061.0,40057.0,0.13001558]
[1645206727046,0.37090307,40061.0,40049.0,0.1248]
[1645206727279,0.37090307,40061.0,40049.0,0.0091]
[1645206727480,0.06244144,40060.0,40049.0,0.0091]
[1645206728180,0.12245569,40054.0,40049.0,0.0091]
[1645206728379,0.36244431,40060.0,40049.0,0.0091]
[1645206728579,0.06244431,40060.0,40049.0,0.00903042]
[1645206728781,0.05,40059.0,40055.0,0.33407442]
[1645206729184,0.062441,40063.0,40055.0,0.33407442]
[1645206729385,0.05,40066.0,40056.0,0.11608452]
[1645206729583,0.05,40066.0,40057.0,0.062428]
[1645206729782,0.0097,40071.0,40057.0,0.062428]
[1645206729985,0.0097,40071.0,40068.0,0.00156121]
[1645206732430,0.1839,40079.0,40068.0,0.00156121]
[1645206732831,0.1194,40080.0,40068.0,0.00156121]
[1645206733030,0.0094,40079.0,40075.0,0.13297983]
[1645206733230,0.06276912,40082.0,40075.0,0.13297983]
[1645206733431,1.39751664,40088.0,40075.0,0.13297983]
[1645206733432,0.1824,40088.0,40075.0,0.13297983]
[1645206733632,0.0097,40087.0,40076.0,0.0599]
[1645206734231,0.00035643,40088.0,40080.0,0.19835711]
[1645206734431,0.01,40089.0,40087.0,0.31971474]
[1645206734683,0.01,40089.0,40088.0,0.12465468]
[1645206735486,0.01,40089.0,40088.0,0.13425468]
[1645206736085,0.00035643,40095.0,40089.0,1.45]
[1645206736287,0.00035643,40092.0,40090.0,0.14998408]
[1645206736486,0.00035643,40099.0,40090.0,0.44998408]
[1645206736686,0.00035643,40106.0,40090.0,0.44998408]
[1645206736885,0.20562915,40106.0,40092.0,0.06237]
[1645206737085,0.20598558,40106.0,40099.0,0.11977479]
[1645206737584,0.55216375,40106.0,40096.0,0.05]
[1645206737786,0.062379,40105.0,40096.0,0.05]
[1645206737989,0.18750141,40105.0,40096.0,0.05]
[1645206738186,0.06238207,40104.0,40096.0,0.05]
[1645206738434,0.0627385,40104.0,40096.0,0.05]
[1645206738628,0.0627385,40104.0,40099.0,0.13270335]
[1645206738827,0.06238207,40104.0,40099.0,0.13270335]
[1645206739030,0.00035643,40105.0,40099.0,0.13270335]
[1645206739229,0.05,40106.0,40099.0,0.13270335]
[1645206739230,0.00035643,40106.0,40099.0,0.13270335]
[1645206739430,0.00035643,40105.0,40099.0,0.13270335]
[1645206739630,0.00035643,40106.0,40099.0,0.13270335]
[1645206739829,0.07252911,40107.0,40099.0,0.13270335]
[1645206740031,0.00035643,40106.0,40099.0,0.13270335]
[1645206740232,0.07252911,40107.0,40099.0,0.13270335]
[1645206740540,0.00035643,40106.0,40099.0,0.13270335]
[1645206740731,0.01015643,40107.0,40099.0,0.13270335]
[1645206740932,0.00035643,40106.0,40099.0,0.13270335]
[1645206741132,0.0098,40107.0,40099.0,0.13270335]
[1645206741338,0.01,40109.0,40099.0,0.13270335]
[1645206741339,0.00035643,40106.0,40099.0,0.13270335]
[1645206741635,6.141e-05,40106.0,40099.0,0.13270335]
[1645206742182,6.141e-05,40106.0,40100.0,0.3]
[1645206743583,6.141e-05,40106.0,40099.0,0.13270335]
[1645206743584,0.10319347,40106.0,40099.0,0.13270335]
[1645206743785,0.10319347,40106.0,40098.0,0.0095]
[1645206743983,0.10319347,40106.0,40101.0,0.00217483]
[1645206744186,0.05006141,40106.0,40101.0,0.00217483]
[1645206744385,6.141e-05,40106.0,40101.0,0.00217483]